Workbook

Sheet TABELA
B2: OUTPUT | D2: INPUT1 | E2: INPUT2 | F2: INPUT3
A3: A | B3: 1,2,3,4,5,6,7,8 | D3: 1,4,9,16,25,36,49,64 | E3: 1,8,27,64,125,216,343,512 | F3: 1,16,81,256,625,1296,2401,4096
C4: πI | D4: 0.7 | E4: 0.7931034483 | F4: 0.8459459459
C5: πII | D5: 0.3 | E5: 0.2068965517 | F5: 0.1540540541
A6: B | B6: 1,2,3,4,5,6,7,8 | D6: 1,2,3,4,5,6,7,8 | E6: 2,4,6,8,10,12,14,16, | F6: 3,6,9,12,15,18,21,24
C7: πI | D7: 0.5 | E7: 0.5 | F7: 0.5
C8: πII | D8: 0.5 | E8: 0.5 | F8: 0.5
A9: C | B9: 8,7,6,5,4,3,2,1 | D9: 8,7,6,5,4,3,2,1 | E9: 16,14,12,10,8,6,4,2 | F9: 24,21,18,15,12,9,6,3
C10: πI | D10: 5 | E10: 5 | F10: 5
C11: πII | D11: -4 | E11: -4 | F11: -4
A12: D | B12: 8,7,6,5,4,3,2,1 | D12: 64,49,36,25,16,9,4,1 | E12: 512,343,216,125,64,27,8,1 | F12: 4096,2401,1296,625,81,16,1
C13: πI | D13: 7 | E13: 8.8 | F13: 10.53571429
C14: πII | D14: -6 | E14: -7.8 | F14: -9.535714286
A15: E | B15: 1,2,3,4,5,6,7,8 | D15: 1,1,1,1,1,1,1,1 | E15: 2,2,2,2,2,2,2,2 | F15: 3,3,3,3,3,3,3,3
C16: πI | D16: 0 | E16: 0 | F16: 0
C17: πII | D17: 1 | E17: 1 | F17: 1
A18: F | B18: 10,10,10,10,10,10,10,10 | D18: 1,2,3,4,5,6,7,8 | E18: 1,4,9,16,25,36,49,64 | F18: 1,8,27,64,125,216,343,512
C19: πI | D19: 1 | E19: 1 | F19: 1
C20: πII | D20: 0 | E20: 0 | F20: 0
A21: A - input=output[^2, ^3, ^4]; B - input=output[x1, x2, x3]; C - input=output[x1, x2, x3]; D - input=output[^2, ^3, ^4]; E - input=[1,2,3]; F - input=output(E)[^2, ^3, ^4]

Sheet A
A1: YEAR | B1: 1 | C1: 2 | D1: 3 | E1: 4 | F1: 5 | G1: 6 | H1: 7 | I1: 8 | L1: 1 | M1: 2 | N1: 3 | O1: 4 | P1: 5 | Q1: 6 | R1: 7 | S1: 8 | W1: 1 | X1: 2 | Y1: 3 | Z1: 4 | AA1: 5 | AB1: 6 | AC1: 7 | AD1: 8
A2: OUTPUT | B2: 1 | C2: 2 | D2: 3 | E2: 4 | F2: 5 | G2: 6 | H2: 7 | I2: 8
A3: INPUT1 | B3: =B2^2 -> 1 | C3: =C2^2 -> 4 | D3: 9 | E3: 16 | F3: 25 | G3: 36 | H3: 49 | I3: 64 | K3: INPUT1 | L3: =MMULT(B3:I5,B23:I30) -> 1 | M3: 2 | N3: 3 | O3: 4 | P3: 5 | Q3: 6 | R3: 7 | S3: 8 | T3: =SUM(M3:S3) -> 35 | V3: AREA | W3: =MMULT(L3:S5,L23:S30) -> 1 | X3: 2.5 | Y3: 4.666666667 | Z3: 7.5 | AA3: 11 | AB3: 15.16666667 | AC3: 20 | AD3: 25.5
A4: INPUT2 | B4: =B2^3 -> 1 | C4: =C2^3 -> 8 | D4: 27 | E4: 64 | F4: 125 | G4: 216 | H4: 343 | I4: 512 | K4: INPUT2 | L4: 1 | M4: 4 | N4: 9 | O4: 16 | P4: 25 | Q4: 36 | R4: 49 | S4: 64 | T4: =SUM(M4:S4) -> 203 | V4: LABOR | W4: 1 | X4: 4.5 | Y4: 12 | Z4: 25 | AA4: 45 | AB4: 73.5 | AC4: 112 | AD4: 162
A5: INPUT3 | B5: =B2^4 -> 1 | C5: =C2^4 -> 16 | D5: 81 | E5: 256 | F5: 625 | G5: 1296 | H5: 2401 | I5: 4096 | K5: INPUT3 | L5: 1 | M5: 8 | N5: 27 | O5: 64 | P5: 125 | Q5: 216 | R5: 343 | S5: 512 | T5: 1295 | V5: NPK | W5: 1 | X5: 8.5 | Y5: 32.66666667 | Z5: 88.5 | AA5: 195.8 | AB5: 379.1666667 | AC5: 668 | AD5: 1096.5
V9: AREA | X9: =X3-W3 -> 1.5 | Y9: =Y3-X3 -> 2.166666667 | Z9: 2.833333333 | AA9: 3.5 | AB9: 4.166666667 | AC9: 4.833333333 | AD9: 5.5 | AE9: =SUM(X9:AD9) -> 24.5 | AF9: =AE9/T3 -> 0.7
B10: 1 | C10: 2 | D10: 3 | E10: 4 | F10: 5 | G10: 6 | H10: 7 | I10: 8 | L10: 1 | M10: 2 | N10: 3 | O10: 4 | P10: 5 | Q10: 6 | R10: 7 | S10: 8 | V10: LABOR | X10: =X4-W4 -> 3.5 | Y10: 7.5 | Z10: 13 | AA10: 20 | AB10: 28.5 | AC10: 38.5 | AD10: 50 | AE10: =SUM(X10:AD10) -> 161 | AF10: =AE10/T4 -> 0.7931034483
A11: 1 | B11: =B2 -> 1 | C11: =-B11 -> -1 | D11: 0 | E11: 0 | F11: 0 | G11: 0 | H11: 0 | I11: 0 | K11: 1 | L11: =MMULT(B11:I18,B23:I30) -> 1 | M11: -0.5 | N11: 0 | O11: 0 | P11: 0 | Q11: 0 | R11: 0 | S11: 0 | V11: NPK | X11: =X5-W5 -> 7.5 | Y11: 24.16666667 | Z11: 55.83333333 | AA11: 107.3 | AB11: 183.3666667 | AC11: 288.8333333 | AD11: 428.5 | AE11: 1095.5 | AF11: 0.8459459459
A12: 2 | B12: 0 | C12: =C2 -> 2 | D12: =-C12 -> -2 | E12: 0 | F12: 0 | G12: 0 | H12: 0 | I12: 0 | K12: 2 | L12: 0 | M12: 1 | N12: -0.6666666667 | O12: 0 | P12: 0 | Q12: 0 | R12: 0 | S12: 0
A13: 3 | B13: 0 | C13: 0 | D13: =D2 -> 3 | E13: =-D13 -> -3 | F13: 0 | G13: 0 | H13: 0 | I13: 0 | K13: 3 | L13: 0 | M13: 0 | N13: 1 | O13: -0.75 | P13: 0 | Q13: 0 | R13: 0 | S13: 0
A14: 4 | B14: 0 | C14: 0 | D14: 0 | E14: =E2 -> 4 | F14: =-E14 -> -4 | G14: 0 | H14: 0 | I14: 0 | K14: 4 | L14: 0 | M14: 0 | N14: 0 | O14: 1 | P14: -0.8 | Q14: 0 | R14: 0 | S14: 0
A15: 5 | B15: 0 | C15: 0 | D15: 0 | E15: 0 | F15: =F2 -> 5 | G15: =-F15 -> -5 | H15: 0 | I15: 0 | K15: 5 | L15: 0 | M15: 0 | N15: 0 | O15: 0 | P15: 1 | Q15: -0.8333333333 | R15: 0 | S15: 0 | V15: AREA | X15: =M3-X9 -> 0.5 | Y15: 0.8333333333 | Z15: 1.166666667 | AA15: 1.5 | AB15: 1.833333333 | AC15: 2.166666667 | AD15: 2.5 | AE15: 10.5 | AF15: =AE15/T3 -> 0.3
A16: 6 | B16: 0 | C16: 0 | D16: 0 | E16: 0 | F16: 0 | G16: =G2 -> 6 | H16: =-G16 -> -6 | I16: 0 | K16: 6 | L16: 0 | M16: 0 | N16: 0 | O16: 0 | P16: 0 | Q16: 1 | R16: -0.8571428571 | S16: 0 | V16: LABOR | X16: 0.5 | Y16: 1.5 | Z16: 3 | AA16: 5 | AB16: 7.5 | AC16: 10.5 | AD16: 14 | AE16: 42 | AF16: =AE16/T4 -> 0.2068965517
A17: 7 | B17: 0 | C17: 0 | D17: 0 | E17: 0 | F17: 0 | G17: 0 | H17: =H2 -> 7 | I17: =-H17 -> -7 | K17: 7 | L17: 0 | M17: 0 | N17: 0 | O17: 0 | P17: 0 | Q17: 0 | R17: 1 | S17: -0.875 | V17: NPK | X17: 0.5 | Y17: 2.833333333 | Z17: 8.166666667 | AA17: 17.7 | AB17: 32.63333333 | AC17: 54.16666667 | AD17: 83.5 | AE17: 199.5 | AF17: 0.1540540541
A18: 8 | B18: 0 | C18: 0 | D18: 0 | E18: 0 | F18: 0 | G18: 0 | H18: 0 | I18: =I2 -> 8 | K18: 8 | L18: 0 | M18: 0 | N18: 0 | O18: 0 | P18: 0 | Q18: 0 | R18: 0 | S18: 1
B22: 1 | C22: 2 | D22: 3 | E22: 4 | F22: 5 | G22: 6 | H22: 7 | I22: 8 | L22: 1 | M22: 2 | N22: 3 | O22: 4 | P22: 5 | Q22: 6 | R22: 7 | S22: 8
A23: 1 | B23: =1/B2 -> 1 | C23: 0 | D23: 0 | E23: 0 | F23: 0 | G23: 0 | H23: 0 | I23: 0 | K23: 1 | L23: =MINVERSE(L11:S18) -> 1 | M23: 0.5 | N23: 0.3333333333 | O23: 0.25 | P23: 0.2 | Q23: 0.1666666667 | R23: 0.1428571429 | S23: 0.125
A24: 2 | B24: 0 | C24: =1/C2 -> 0.5 | D24: 0 | E24: 0 | F24: 0 | G24: 0 | H24: 0 | I24: 0 | K24: 2 | L24: 0 | M24: 1 | N24: 0.6666666667 | O24: 0.5 | P24: 0.4 | Q24: 0.3333333333 | R24: 0.2857142857 | S24: 0.25
A25: 3 | B25: 0 | C25: 0 | D25: =1/D2 -> 0.3333333333 | E25: 0 | F25: 0 | G25: 0 | H25: 0 | I25: 0 | K25: 3 | L25: 0 | M25: 0 | N25: 1 | O25: 0.75 | P25: 0.6 | Q25: 0.5 | R25: 0.4285714286 | S25: 0.375
A26: 4 | B26: 0 | C26: 0 | D26: 0 | E26: =1/E2 -> 0.25 | F26: 0 | G26: 0 | H26: 0 | I26: 0 | K26: 4 | L26: 0 | M26: 0 | N26: 0 | O26: 1 | P26: 0.8 | Q26: 0.6666666667 | R26: 0.5714285714 | S26: 0.5
A27: 5 | B27: 0 | C27: 0 | D27: 0 | E27: 0 | F27: =1/F2 -> 0.2 | G27: 0 | H27: 0 | I27: 0 | K27: 5 | L27: 0 | M27: 0 | N27: 0 | O27: 0 | P27: 1 | Q27: 0.8333333333 | R27: 0.7142857143 | S27: 0.625
A28: 6 | B28: 0 | C28: 0 | D28: 0 | E28: 0 | F28: 0 | G28: =1/G2 -> 0.1666666667 | H28: 0 | I28: 0 | K28: 6 | L28: 0 | M28: 0 | N28: 0 | O28: 0 | P28: 0 | Q28: 1 | R28: 0.8571428571 | S28: 0.75
A29: 7 | B29: 0 | C29: 0 | D29: 0 | E29: 0 | F29: 0 | G29: 0 | H29: =1/H2 -> 0.1428571429 | I29: 0 | K29: 7 | L29: 0 | M29: 0 | N29: 0 | O29: 0 | P29: 0 | Q29: 0 | R29: 1 | S29: 0.875
A30: 8 | B30: 0 | C30: 0 | D30: 0 | E30: 0 | F30: 0 | G30: 0 | H30: 0 | I30: =1/I2 -> 0.125 | K30: 8 | L30: 0 | M30: 0 | N30: 0 | O30: 0 | P30: 0 | Q30: 0 | R30: 0 | S30: 1

Sheet B
A1: YEAR | B1: 1 | C1: 2 | D1: 3 | E1: 4 | F1: 5 | G1: 6 | H1: 7 | I1: 8 | L1: 1 | M1: 2 | N1: 3 | O1: 4 | P1: 5 | Q1: 6 | R1: 7 | S1: 8 | W1: 1 | X1: 2 | Y1: 3 | Z1: 4 | AA1: 5 | AB1: 6 | AC1: 7 | AD1: 8
A2: OUTPUT | B2: 1 | C2: 2 | D2: 3 | E2: 4 | F2: 5 | G2: 6 | H2: 7 | I2: 8
A3: INPUT1 | B3: =B2*1 -> 1 | C3: =C2*1 -> 2 | D3: 3 | E3: 4 | F3: 5 | G3: 6 | H3: 7 | I3: 8 | K3: INPUT1 | L3: =MMULT(B3:I5,B23:I30) -> 1 | M3: 1 | N3: 1 | O3: 1 | P3: 1 | Q3: 1 | R3: 1 | S3: 1 | T3: =SUM(M3:S3) -> 7 | V3: AREA | W3: =MMULT(L3:S5,L23:S30) -> 1 | X3: 1.5 | Y3: 2 | Z3: 2.5 | AA3: 3 | AB3: 3.5 | AC3: 4 | AD3: 4.5
A4: INPUT2 | B4: =B2*2 -> 2 | C4: =C2*2 -> 4 | D4: 6 | E4: 8 | F4: 10 | G4: 12 | H4: 14 | I4: 16 | K4: INPUT2 | L4: 2 | M4: 2 | N4: 2 | O4: 2 | P4: 2 | Q4: 2 | R4: 2 | S4: 2 | T4: =SUM(M4:S4) -> 14 | V4: LABOR | W4: 2 | X4: 3 | Y4: 4 | Z4: 5 | AA4: 6 | AB4: 7 | AC4: 8 | AD4: 9
A5: INPUT3 | B5: =B2*3 -> 3 | C5: =C2*3 -> 6 | D5: 9 | E5: 12 | F5: 15 | G5: 18 | H5: 21 | I5: 24 | K5: INPUT3 | L5: 3 | M5: 3 | N5: 3 | O5: 3 | P5: 3 | Q5: 3 | R5: 3 | S5: 3 | T5: 21 | V5: NPK | W5: 3 | X5: 4.5 | Y5: 6 | Z5: 7.5 | AA5: 9 | AB5: 10.5 | AC5: 12 | AD5: 13.5
V9: AREA | X9: =X3-W3 -> 0.5 | Y9: =Y3-X3 -> 0.5 | Z9: 0.5 | AA9: 0.5 | AB9: 0.5 | AC9: 0.5 | AD9: 0.5 | AE9: =SUM(X9:AD9) -> 3.5 | AF9: =AE9/T3 -> 0.5
B10: 1 | C10: 2 | D10: 3 | E10: 4 | F10: 5 | G10: 6 | H10: 7 | I10: 8 | L10: 1 | M10: 2 | N10: 3 | O10: 4 | P10: 5 | Q10: 6 | R10: 7 | S10: 8 | V10: LABOR | X10: =X4-W4 -> 1 | Y10: 1 | Z10: 1 | AA10: 1 | AB10: 1 | AC10: 1 | AD10: 1 | AE10: =SUM(X10:AD10) -> 7 | AF10: =AE10/T4 -> 0.5
A11: 1 | B11: =B2 -> 1 | C11: =-B11 -> -1 | D11: 0 | E11: 0 | F11: 0 | G11: 0 | H11: 0 | I11: 0 | K11: 1 | L11: =MMULT(B11:I18,B23:I30) -> 1 | M11: -0.5 | N11: 0 | O11: 0 | P11: 0 | Q11: 0 | R11: 0 | S11: 0 | V11: NPK | X11: =X5-W5 -> 1.5 | Y11: 1.5 | Z11: 1.5 | AA11: 1.5 | AB11: 1.5 | AC11: 1.5 | AD11: 1.5 | AE11: 10.5 | AF11: 0.5
A12: 2 | B12: 0 | C12: =C2 -> 2 | D12: =-C12 -> -2 | E12: 0 | F12: 0 | G12: 0 | H12: 0 | I12: 0 | K12: 2 | L12: 0 | M12: 1 | N12: -0.6666666667 | O12: 0 | P12: 0 | Q12: 0 | R12: 0 | S12: 0
A13: 3 | B13: 0 | C13: 0 | D13: =D2 -> 3 | E13: =-D13 -> -3 | F13: 0 | G13: 0 | H13: 0 | I13: 0 | K13: 3 | L13: 0 | M13: 0 | N13: 1 | O13: -0.75 | P13: 0 | Q13: 0 | R13: 0 | S13: 0
A14: 4 | B14: 0 | C14: 0 | D14: 0 | E14: =E2 -> 4 | F14: =-E14 -> -4 | G14: 0 | H14: 0 | I14: 0 | K14: 4 | L14: 0 | M14: 0 | N14: 0 | O14: 1 | P14: -0.8 | Q14: 0 | R14: 0 | S14: 0
A15: 5 | B15: 0 | C15: 0 | D15: 0 | E15: 0 | F15: =F2 -> 5 | G15: =-F15 -> -5 | H15: 0 | I15: 0 | K15: 5 | L15: 0 | M15: 0 | N15: 0 | O15: 0 | P15: 1 | Q15: -0.8333333333 | R15: 0 | S15: 0 | V15: AREA | X15: =M3-X9 -> 0.5 | Y15: 0.5 | Z15: 0.5 | AA15: 0.5 | AB15: 0.5 | AC15: 0.5 | AD15: 0.5 | AE15: 3.5 | AF15: =AE15/T3 -> 0.5
A16: 6 | B16: 0 | C16: 0 | D16: 0 | E16: 0 | F16: 0 | G16: =G2 -> 6 | H16: =-G16 -> -6 | I16: 0 | K16: 6 | L16: 0 | M16: 0 | N16: 0 | O16: 0 | P16: 0 | Q16: 1 | R16: -0.8571428571 | S16: 0 | V16: LABOR | X16: 1 | Y16: 1 | Z16: 1 | AA16: 1 | AB16: 1 | AC16: 1 | AD16: 1 | AE16: 7 | AF16: =AE16/T4 -> 0.5
A17: 7 | B17: 0 | C17: 0 | D17: 0 | E17: 0 | F17: 0 | G17: 0 | H17: =H2 -> 7 | I17: =-H17 -> -7 | K17: 7 | L17: 0 | M17: 0 | N17: 0 | O17: 0 | P17: 0 | Q17: 0 | R17: 1 | S17: -0.875 | V17: NPK | X17: 1.5 | Y17: 1.5 | Z17: 1.5 | AA17: 1.5 | AB17: 1.5 | AC17: 1.5 | AD17: 1.5 | AE17: 10.5 | AF17: 0.5
A18: 8 | B18: 0 | C18: 0 | D18: 0 | E18: 0 | F18: 0 | G18: 0 | H18: 0 | I18: =I2 -> 8 | K18: 8 | L18: 0 | M18: 0 | N18: 0 | O18: 0 | P18: 0 | Q18: 0 | R18: 0 | S18: 1
B22: 1 | C22: 2 | D22: 3 | E22: 4 | F22: 5 | G22: 6 | H22: 7 | I22: 8 | L22: 1 | M22: 2 | N22: 3 | O22: 4 | P22: 5 | Q22: 6 | R22: 7 | S22: 8
A23: 1 | B23: =1/B2 -> 1 | C23: 0 | D23: 0 | E23: 0 | F23: 0 | G23: 0 | H23: 0 | I23: 0 | K23: 1 | L23: =MINVERSE(L11:S18) -> 1 | M23: 0.5 | N23: 0.3333333333 | O23: 0.25 | P23: 0.2 | Q23: 0.1666666667 | R23: 0.1428571429 | S23: 0.125
A24: 2 | B24: 0 | C24: =1/C2 -> 0.5 | D24: 0 | E24: 0 | F24: 0 | G24: 0 | H24: 0 | I24: 0 | K24: 2 | L24: 0 | M24: 1 | N24: 0.6666666667 | O24: 0.5 | P24: 0.4 | Q24: 0.3333333333 | R24: 0.2857142857 | S24: 0.25
A25: 3 | B25: 0 | C25: 0 | D25: =1/D2 -> 0.3333333333 | E25: 0 | F25: 0 | G25: 0 | H25: 0 | I25: 0 | K25: 3 | L25: 0 | M25: 0 | N25: 1 | O25: 0.75 | P25: 0.6 | Q25: 0.5 | R25: 0.4285714286 | S25: 0.375
A26: 4 | B26: 0 | C26: 0 | D26: 0 | E26: =1/E2 -> 0.25 | F26: 0 | G26: 0 | H26: 0 | I26: 0 | K26: 4 | L26: 0 | M26: 0 | N26: 0 | O26: 1 | P26: 0.8 | Q26: 0.6666666667 | R26: 0.5714285714 | S26: 0.5
A27: 5 | B27: 0 | C27: 0 | D27: 0 | E27: 0 | F27: =1/F2 -> 0.2 | G27: 0 | H27: 0 | I27: 0 | K27: 5 | L27: 0 | M27: 0 | N27: 0 | O27: 0 | P27: 1 | Q27: 0.8333333333 | R27: 0.7142857143 | S27: 0.625
A28: 6 | B28: 0 | C28: 0 | D28: 0 | E28: 0 | F28: 0 | G28: =1/G2 -> 0.1666666667 | H28: 0 | I28: 0 | K28: 6 | L28: 0 | M28: 0 | N28: 0 | O28: 0 | P28: 0 | Q28: 1 | R28: 0.8571428571 | S28: 0.75
A29: 7 | B29: 0 | C29: 0 | D29: 0 | E29: 0 | F29: 0 | G29: 0 | H29: =1/H2 -> 0.1428571429 | I29: 0 | K29: 7 | L29: 0 | M29: 0 | N29: 0 | O29: 0 | P29: 0 | Q29: 0 | R29: 1 | S29: 0.875
A30: 8 | B30: 0 | C30: 0 | D30: 0 | E30: 0 | F30: 0 | G30: 0 | H30: 0 | I30: =1/I2 -> 0.125 | K30: 8 | L30: 0 | M30: 0 | N30: 0 | O30: 0 | P30: 0 | Q30: 0 | R30: 0 | S30: 1

Sheet C
A1: YEAR | B1: 1 | C1: 2 | D1: 3 | E1: 4 | F1: 5 | G1: 6 | H1: 7 | I1: 8 | L1: 1 | M1: 2 | N1: 3 | O1: 4 | P1: 5 | Q1: 6 | R1: 7 | S1: 8 | W1: 1 | X1: 2 | Y1: 3 | Z1: 4 | AA1: 5 | AB1: 6 | AC1: 7 | AD1: 8
A2: OUTPUT | B2: 8 | C2: 7 | D2: 6 | E2: 5 | F2: 4 | G2: 3 | H2: 2 | I2: 1
A3: INPUT1 | B3: =B2*1 -> 8 | C3: =C2*1 -> 7 | D3: 6 | E3: 5 | F3: 4 | G3: 3 | H3: 2 | I3: 1 | K3: INPUT1 | L3: =MMULT(B3:I5,B23:I30) -> 1 | M3: 1 | N3: 1 | O3: 1 | P3: 1 | Q3: 1 | R3: 1 | S3: 1 | T3: =SUM(M3:S3) -> 7 | V3: AREA | W3: =MMULT(L3:S5,L23:S30) -> 1 | X3: 2.142857143 | Y3: 3.5 | Z3: 5.2 | AA3: 7.5 | AB3: 11 | AC3: 17.5 | AD3: 36
A4: INPUT2 | B4: =B2*2 -> 16 | C4: =C2*2 -> 14 | D4: 12 | E4: 10 | F4: 8 | G4: 6 | H4: 4 | I4: 2 | K4: INPUT2 | L4: 2 | M4: 2 | N4: 2 | O4: 2 | P4: 2 | Q4: 2 | R4: 2 | S4: 2 | T4: =SUM(M4:S4) -> 14 | V4: LABOR | W4: 2 | X4: 4.285714286 | Y4: 7 | Z4: 10.4 | AA4: 15 | AB4: 22 | AC4: 35 | AD4: 72
A5: INPUT3 | B5: =B2*3 -> 24 | C5: =C2*3 -> 21 | D5: 18 | E5: 15 | F5: 12 | G5: 9 | H5: 6 | I5: 3 | K5: INPUT3 | L5: 3 | M5: 3 | N5: 3 | O5: 3 | P5: 3 | Q5: 3 | R5: 3 | S5: 3 | T5: 21 | V5: NPK | W5: 3 | X5: 6.428571429 | Y5: 10.5 | Z5: 15.6 | AA5: 22.5 | AB5: 33 | AC5: 52.5 | AD5: 108
V9: AREA | X9: =X3-W3 -> 1.142857143 | Y9: =Y3-X3 -> 1.357142857 | Z9: 1.7 | AA9: 2.3 | AB9: 3.5 | AC9: 6.5 | AD9: 18.5 | AE9: =SUM(X9:AD9) -> 35 | AF9: =AE9/T3 -> 5
B10: 1 | C10: 2 | D10: 3 | E10: 4 | F10: 5 | G10: 6 | H10: 7 | I10: 8 | L10: 1 | M10: 2 | N10: 3 | O10: 4 | P10: 5 | Q10: 6 | R10: 7 | S10: 8 | V10: LABOR | X10: =X4-W4 -> 2.285714286 | Y10: 2.714285714 | Z10: 3.4 | AA10: 4.6 | AB10: 7 | AC10: 13 | AD10: 37 | AE10: =SUM(X10:AD10) -> 70 | AF10: =AE10/T4 -> 5
A11: 1 | B11: =B2 -> 8 | C11: =-B11 -> -8 | D11: 0 | E11: 0 | F11: 0 | G11: 0 | H11: 0 | I11: 0 | K11: 1 | L11: =MMULT(B11:I18,B23:I30) -> 1 | M11: -1.142857143 | N11: 0 | O11: 0 | P11: 0 | Q11: 0 | R11: 0 | S11: 0 | V11: NPK | X11: =X5-W5 -> 3.428571429 | Y11: 4.071428571 | Z11: 5.1 | AA11: 6.9 | AB11: 10.5 | AC11: 19.5 | AD11: 55.5 | AE11: 105 | AF11: 5
A12: 2 | B12: 0 | C12: =C2 -> 7 | D12: =-C12 -> -7 | E12: 0 | F12: 0 | G12: 0 | H12: 0 | I12: 0 | K12: 2 | L12: 0 | M12: 1 | N12: -1.166666667 | O12: 0 | P12: 0 | Q12: 0 | R12: 0 | S12: 0
A13: 3 | B13: 0 | C13: 0 | D13: =D2 -> 6 | E13: =-D13 -> -6 | F13: 0 | G13: 0 | H13: 0 | I13: 0 | K13: 3 | L13: 0 | M13: 0 | N13: 1 | O13: -1.2 | P13: 0 | Q13: 0 | R13: 0 | S13: 0
A14: 4 | B14: 0 | C14: 0 | D14: 0 | E14: =E2 -> 5 | F14: =-E14 -> -5 | G14: 0 | H14: 0 | I14: 0 | K14: 4 | L14: 0 | M14: 0 | N14: 0 | O14: 1 | P14: -1.25 | Q14: 0 | R14: 0 | S14: 0
A15: 5 | B15: 0 | C15: 0 | D15: 0 | E15: 0 | F15: =F2 -> 4 | G15: =-F15 -> -4 | H15: 0 | I15: 0 | K15: 5 | L15: 0 | M15: 0 | N15: 0 | O15: 0 | P15: 1 | Q15: -1.333333333 | R15: 0 | S15: 0 | V15: AREA | X15: =M3-X9 -> -0.1428571429 | Y15: -0.3571428571 | Z15: -0.7 | AA15: -1.3 | AB15: -2.5 | AC15: -5.5 | AD15: -17.5 | AE15: -28 | AF15: =AE15/T3 -> -4
A16: 6 | B16: 0 | C16: 0 | D16: 0 | E16: 0 | F16: 0 | G16: =G2 -> 3 | H16: =-G16 -> -3 | I16: 0 | K16: 6 | L16: 0 | M16: 0 | N16: 0 | O16: 0 | P16: 0 | Q16: 1 | R16: -1.5 | S16: 0 | V16: LABOR | X16: -0.2857142857 | Y16: -0.7142857143 | Z16: -1.4 | AA16: -2.6 | AB16: -5 | AC16: -11 | AD16: -35 | AE16: -56 | AF16: =AE16/T4 -> -4
A17: 7 | B17: 0 | C17: 0 | D17: 0 | E17: 0 | F17: 0 | G17: 0 | H17: =H2 -> 2 | I17: =-H17 -> -2 | K17: 7 | L17: 0 | M17: 0 | N17: 0 | O17: 0 | P17: 0 | Q17: 0 | R17: 1 | S17: -2 | V17: NPK | X17: -0.4285714286 | Y17: -1.071428571 | Z17: -2.1 | AA17: -3.9 | AB17: -7.5 | AC17: -16.5 | AD17: -52.5 | AE17: -84 | AF17: -4
A18: 8 | B18: 0 | C18: 0 | D18: 0 | E18: 0 | F18: 0 | G18: 0 | H18: 0 | I18: =I2 -> 1 | K18: 8 | L18: 0 | M18: 0 | N18: 0 | O18: 0 | P18: 0 | Q18: 0 | R18: 0 | S18: 1
B22: 1 | C22: 2 | D22: 3 | E22: 4 | F22: 5 | G22: 6 | H22: 7 | I22: 8 | L22: 1 | M22: 2 | N22: 3 | O22: 4 | P22: 5 | Q22: 6 | R22: 7 | S22: 8
A23: 1 | B23: =1/B2 -> 0.125 | C23: 0 | D23: 0 | E23: 0 | F23: 0 | G23: 0 | H23: 0 | I23: 0 | K23: 1 | L23: =MINVERSE(L11:S18) -> 1 | M23: 1.142857143 | N23: 1.333333333 | O23: 1.6 | P23: 2 | Q23: 2.666666667 | R23: 4 | S23: 8
A24: 2 | B24: 0 | C24: =1/C2 -> 0.1428571429 | D24: 0 | E24: 0 | F24: 0 | G24: 0 | H24: 0 | I24: 0 | K24: 2 | L24: 0 | M24: 1 | N24: 1.166666667 | O24: 1.4 | P24: 1.75 | Q24: 2.333333333 | R24: 3.5 | S24: 7
A25: 3 | B25: 0 | C25: 0 | D25: =1/D2 -> 0.1666666667 | E25: 0 | F25: 0 | G25: 0 | H25: 0 | I25: 0 | K25: 3 | L25: 0 | M25: 0 | N25: 1 | O25: 1.2 | P25: 1.5 | Q25: 2 | R25: 3 | S25: 6
A26: 4 | B26: 0 | C26: 0 | D26: 0 | E26: =1/E2 -> 0.2 | F26: 0 | G26: 0 | H26: 0 | I26: 0 | K26: 4 | L26: 0 | M26: 0 | N26: 0 | O26: 1 | P26: 1.25 | Q26: 1.666666667 | R26: 2.5 | S26: 5
A27: 5 | B27: 0 | C27: 0 | D27: 0 | E27: 0 | F27: =1/F2 -> 0.25 | G27: 0 | H27: 0 | I27: 0 | K27: 5 | L27: 0 | M27: 0 | N27: 0 | O27: 0 | P27: 1 | Q27: 1.333333333 | R27: 2 | S27: 4
A28: 6 | B28: 0 | C28: 0 | D28: 0 | E28: 0 | F28: 0 | G28: =1/G2 -> 0.3333333333 | H28: 0 | I28: 0 | K28: 6 | L28: 0 | M28: 0 | N28: 0 | O28: 0 | P28: 0 | Q28: 1 | R28: 1.5 | S28: 3
A29: 7 | B29: 0 | C29: 0 | D29: 0 | E29: 0 | F29: 0 | G29: 0 | H29: =1/H2 -> 0.5 | I29: 0 | K29: 7 | L29: 0 | M29: 0 | N29: 0 | O29: 0 | P29: 0 | Q29: 0 | R29: 1 | S29: 2
A30: 8 | B30: 0 | C30: 0 | D30: 0 | E30: 0 | F30: 0 | G30: 0 | H30: 0 | I30: =1/I2 -> 1 | K30: 8 | L30: 0 | M30: 0 | N30: 0 | O30: 0 | P30: 0 | Q30: 0 | R30: 0 | S30: 1

Sheet D
A1: YEAR | B1: 1 | C1: 2 | D1: 3 | E1: 4 | F1: 5 | G1: 6 | H1: 7 | I1: 8 | L1: 1 | M1: 2 | N1: 3 | O1: 4 | P1: 5 | Q1: 6 | R1: 7 | S1: 8 | W1: 1 | X1: 2 | Y1: 3 | Z1: 4 | AA1: 5 | AB1: 6 | AC1: 7 | AD1: 8
A2: OUTPUT | B2: 8 | C2: 7 | D2: 6 | E2: 5 | F2: 4 | G2: 3 | H2: 2 | I2: 1
A3: INPUT1 | B3: =B2^2 -> 64 | C3: =C2^2 -> 49 | D3: 36 | E3: 25 | F3: 16 | G3: 9 | H3: 4 | I3: 1 | K3: INPUT1 | L3: =MMULT(B3:I5,B23:I30) -> 8 | M3: 7 | N3: 6 | O3: 5 | P3: 4 | Q3: 3 | R3: 2 | S3: 1 | T3: =SUM(M3:S3) -> 28 | V3: AREA | W3: =MMULT(L3:S5,L23:S30) -> 8 | X3: 16.14285714 | Y3: 24.83333333 | Z3: 34.8 | AA3: 47.5 | AB3: 66.33333333 | AC3: 101.5 | AD3: 204
A4: INPUT2 | B4: =B2^3 -> 512 | C4: =C2^3 -> 343 | D4: 216 | E4: 125 | F4: 64 | G4: 27 | H4: 8 | I4: 1 | K4: INPUT2 | L4: 64 | M4: 49 | N4: 36 | O4: 25 | P4: 16 | Q4: 9 | R4: 4 | S4: 1 | T4: =SUM(M4:S4) -> 140 | V4: LABOR | W4: 64 | X4: 122.1428571 | Y4: 178.5 | Z4: 239.2 | AA4: 315 | AB4: 429 | AC4: 647.5 | AD4: 1296
A5: INPUT3 | B5: =B2^4 -> 4096 | C5: =C2^4 -> 2401 | D5: 1296 | E5: 625 | F5: 256 | G5: 81 | H5: 16 | I5: 1 | K5: INPUT3 | L5: 512 | M5: 343 | N5: 216 | O5: 125 | P5: 64 | Q5: 27 | R5: 8 | S5: 1 | T5: 784 | V5: NPK | W5: 512 | X5: 928.1428571 | Y5: 1298.833333 | Z5: 1683.6 | AA5: 2168.5 | AB5: 2918.333333 | AC5: 4385.5 | AD5: 8772
V9: AREA | X9: =X3-W3 -> 8.142857143 | Y9: =Y3-X3 -> 8.69047619 | Z9: 9.966666667 | AA9: 12.7 | AB9: 18.83333333 | AC9: 35.16666667 | AD9: 102.5 | AE9: =SUM(X9:AD9) -> 196 | AF9: =AE9/T3 -> 7
B10: 1 | C10: 2 | D10: 3 | E10: 4 | F10: 5 | G10: 6 | H10: 7 | I10: 8 | L10: 1 | M10: 2 | N10: 3 | O10: 4 | P10: 5 | Q10: 6 | R10: 7 | S10: 8 | V10: LABOR | X10: =X4-W4 -> 58.14285714 | Y10: 56.35714286 | Z10: 60.7 | AA10: 75.8 | AB10: 114 | AC10: 218.5 | AD10: 648.5 | AE10: =SUM(X10:AD10) -> 1232 | AF10: =AE10/T4 -> 8.8
A11: 1 | B11: =B2 -> 8 | C11: =-B11 -> -8 | D11: 0 | E11: 0 | F11: 0 | G11: 0 | H11: 0 | I11: 0 | K11: 1 | L11: =MMULT(B11:I18,B23:I30) -> 1 | M11: -1.142857143 | N11: 0 | O11: 0 | P11: 0 | Q11: 0 | R11: 0 | S11: 0 | V11: NPK | X11: =X5-W5 -> 416.1428571 | Y11: 370.6904762 | Z11: 384.7666667 | AA11: 484.9 | AB11: 749.8333333 | AC11: 1467.166667 | AD11: 4386.5 | AE11: 8260 | AF11: 10.53571429
A12: 2 | B12: 0 | C12: =C2 -> 7 | D12: =-C12 -> -7 | E12: 0 | F12: 0 | G12: 0 | H12: 0 | I12: 0 | K12: 2 | L12: 0 | M12: 1 | N12: -1.166666667 | O12: 0 | P12: 0 | Q12: 0 | R12: 0 | S12: 0
A13: 3 | B13: 0 | C13: 0 | D13: =D2 -> 6 | E13: =-D13 -> -6 | F13: 0 | G13: 0 | H13: 0 | I13: 0 | K13: 3 | L13: 0 | M13: 0 | N13: 1 | O13: -1.2 | P13: 0 | Q13: 0 | R13: 0 | S13: 0
A14: 4 | B14: 0 | C14: 0 | D14: 0 | E14: =E2 -> 5 | F14: =-E14 -> -5 | G14: 0 | H14: 0 | I14: 0 | K14: 4 | L14: 0 | M14: 0 | N14: 0 | O14: 1 | P14: -1.25 | Q14: 0 | R14: 0 | S14: 0
A15: 5 | B15: 0 | C15: 0 | D15: 0 | E15: 0 | F15: =F2 -> 4 | G15: =-F15 -> -4 | H15: 0 | I15: 0 | K15: 5 | L15: 0 | M15: 0 | N15: 0 | O15: 0 | P15: 1 | Q15: -1.333333333 | R15: 0 | S15: 0 | V15: AREA | X15: =M3-X9 -> -1.142857143 | Y15: -2.69047619 | Z15: -4.966666667 | AA15: -8.7 | AB15: -15.83333333 | AC15: -33.16666667 | AD15: -101.5 | AE15: -168 | AF15: =AE15/T3 -> -6
A16: 6 | B16: 0 | C16: 0 | D16: 0 | E16: 0 | F16: 0 | G16: =G2 -> 3 | H16: =-G16 -> -3 | I16: 0 | K16: 6 | L16: 0 | M16: 0 | N16: 0 | O16: 0 | P16: 0 | Q16: 1 | R16: -1.5 | S16: 0 | V16: LABOR | X16: -9.142857143 | Y16: -20.35714286 | Z16: -35.7 | AA16: -59.8 | AB16: -105 | AC16: -214.5 | AD16: -647.5 | AE16: -1092 | AF16: =AE16/T4 -> -7.8
A17: 7 | B17: 0 | C17: 0 | D17: 0 | E17: 0 | F17: 0 | G17: 0 | H17: =H2 -> 2 | I17: =-H17 -> -2 | K17: 7 | L17: 0 | M17: 0 | N17: 0 | O17: 0 | P17: 0 | Q17: 0 | R17: 1 | S17: -2 | V17: NPK | X17: -73.14285714 | Y17: -154.6904762 | Z17: -259.7666667 | AA17: -420.9 | AB17: -722.8333333 | AC17: -1459.166667 | AD17: -4385.5 | AE17: -7476 | AF17: -9.535714286
A18: 8 | B18: 0 | C18: 0 | D18: 0 | E18: 0 | F18: 0 | G18: 0 | H18: 0 | I18: =I2 -> 1 | K18: 8 | L18: 0 | M18: 0 | N18: 0 | O18: 0 | P18: 0 | Q18: 0 | R18: 0 | S18: 1
B22: 1 | C22: 2 | D22: 3 | E22: 4 | F22: 5 | G22: 6 | H22: 7 | I22: 8 | L22: 1 | M22: 2 | N22: 3 | O22: 4 | P22: 5 | Q22: 6 | R22: 7 | S22: 8
A23: 1 | B23: =1/B2 -> 0.125 | C23: 0 | D23: 0 | E23: 0 | F23: 0 | G23: 0 | H23: 0 | I23: 0 | K23: 1 | L23: =MINVERSE(L11:S18) -> 1 | M23: 1.142857143 | N23: 1.333333333 | O23: 1.6 | P23: 2 | Q23: 2.666666667 | R23: 4 | S23: 8
A24: 2 | B24: 0 | C24: =1/C2 -> 0.1428571429 | D24: 0 | E24: 0 | F24: 0 | G24: 0 | H24: 0 | I24: 0 | K24: 2 | L24: 0 | M24: 1 | N24: 1.166666667 | O24: 1.4 | P24: 1.75 | Q24: 2.333333333 | R24: 3.5 | S24: 7
A25: 3 | B25: 0 | C25: 0 | D25: =1/D2 -> 0.1666666667 | E25: 0 | F25: 0 | G25: 0 | H25: 0 | I25: 0 | K25: 3 | L25: 0 | M25: 0 | N25: 1 | O25: 1.2 | P25: 1.5 | Q25: 2 | R25: 3 | S25: 6
A26: 4 | B26: 0 | C26: 0 | D26: 0 | E26: =1/E2 -> 0.2 | F26: 0 | G26: 0 | H26: 0 | I26: 0 | K26: 4 | L26: 0 | M26: 0 | N26: 0 | O26: 1 | P26: 1.25 | Q26: 1.666666667 | R26: 2.5 | S26: 5
A27: 5 | B27: 0 | C27: 0 | D27: 0 | E27: 0 | F27: =1/F2 -> 0.25 | G27: 0 | H27: 0 | I27: 0 | K27: 5 | L27: 0 | M27: 0 | N27: 0 | O27: 0 | P27: 1 | Q27: 1.333333333 | R27: 2 | S27: 4
A28: 6 | B28: 0 | C28: 0 | D28: 0 | E28: 0 | F28: 0 | G28: =1/G2 -> 0.3333333333 | H28: 0 | I28: 0 | K28: 6 | L28: 0 | M28: 0 | N28: 0 | O28: 0 | P28: 0 | Q28: 1 | R28: 1.5 | S28: 3
A29: 7 | B29: 0 | C29: 0 | D29: 0 | E29: 0 | F29: 0 | G29: 0 | H29: =1/H2 -> 0.5 | I29: 0 | K29: 7 | L29: 0 | M29: 0 | N29: 0 | O29: 0 | P29: 0 | Q29: 0 | R29: 1 | S29: 2
A30: 8 | B30: 0 | C30: 0 | D30: 0 | E30: 0 | F30: 0 | G30: 0 | H30: 0 | I30: =1/I2 -> 1 | K30: 8 | L30: 0 | M30: 0 | N30: 0 | O30: 0 | P30: 0 | Q30: 0 | R30: 0 | S30: 1

Sheet E
A1: YEAR | B1: 1 | C1: 2 | D1: 3 | E1: 4 | F1: 5 | G1: 6 | H1: 7 | I1: 8 | L1: 1 | M1: 2 | N1: 3 | O1: 4 | P1: 5 | Q1: 6 | R1: 7 | S1: 8 | W1: 1 | X1: 2 | Y1: 3 | Z1: 4 | AA1: 5 | AB1: 6 | AC1: 7 | AD1: 8
A2: OUTPUT | B2: 1 | C2: 2 | D2: 3 | E2: 4 | F2: 5 | G2: 6 | H2: 7 | I2: 8
A3: INPUT1 | B3: 1 | C3: 1 | D3: 1 | E3: 1 | F3: 1 | G3: 1 | H3: 1 | I3: 1 | K3: INPUT1 | L3: =MMULT(B3:I5,B23:I30) -> 1 | M3: 0.5 | N3: 0.3333333333 | O3: 0.25 | P3: 0.2 | Q3: 0.1666666667 | R3: 0.1428571429 | S3: 0.125 | T3: =SUM(M3:S3) -> 1.717857143 | V3: AREA | W3: =MMULT(L3:S5,L23:S30) -> 1 | X3: 1 | Y3: 1 | Z3: 1 | AA3: 1 | AB3: 1 | AC3: 1 | AD3: 1
A4: INPUT2 | B4: 2 | C4: 2 | D4: 2 | E4: 2 | F4: 2 | G4: 2 | H4: 2 | I4: 2 | K4: INPUT2 | L4: 2 | M4: 1 | N4: 0.6666666667 | O4: 0.5 | P4: 0.4 | Q4: 0.3333333333 | R4: 0.2857142857 | S4: 0.25 | T4: =SUM(M4:S4) -> 3.435714286 | V4: LABOR | W4: 2 | X4: 2 | Y4: 2 | Z4: 2 | AA4: 2 | AB4: 2 | AC4: 2 | AD4: 2
A5: INPUT3 | B5: 3 | C5: 3 | D5: 3 | E5: 3 | F5: 3 | G5: 3 | H5: 3 | I5: 3 | K5: INPUT3 | L5: 3 | M5: 1.5 | N5: 1 | O5: 0.75 | P5: 0.6 | Q5: 0.5 | R5: 0.4285714286 | S5: 0.375 | T5: 5.153571429 | V5: NPK | W5: 3 | X5: 3 | Y5: 3 | Z5: 3 | AA5: 3 | AB5: 3 | AC5: 3 | AD5: 3
V9: AREA | X9: =X3-W3 -> 0 | Y9: =Y3-X3 -> 0 | Z9: 0 | AA9: 0 | AB9: 0 | AC9: 0 | AD9: 0 | AE9: =SUM(X9:AD9) -> 0 | AF9: =AE9/T3 -> 0
B10: 1 | C10: 2 | D10: 3 | E10: 4 | F10: 5 | G10: 6 | H10: 7 | I10: 8 | L10: 1 | M10: 2 | N10: 3 | O10: 4 | P10: 5 | Q10: 6 | R10: 7 | S10: 8 | V10: LABOR | X10: =X4-W4 -> 0 | Y10: 0 | Z10: 0 | AA10: 0 | AB10: 0 | AC10: 0 | AD10: 0 | AE10: =SUM(X10:AD10) -> 0 | AF10: =AE10/T4 -> 0
A11: 1 | B11: =B2 -> 1 | C11: =-B11 -> -1 | D11: 0 | E11: 0 | F11: 0 | G11: 0 | H11: 0 | I11: 0 | K11: 1 | L11: =MMULT(B11:I18,B23:I30) -> 1 | M11: -0.5 | N11: 0 | O11: 0 | P11: 0 | Q11: 0 | R11: 0 | S11: 0 | V11: NPK | X11: =X5-W5 -> 0 | Y11: 0 | Z11: 0 | AA11: 0 | AB11: 0 | AC11: 0 | AD11: 0 | AE11: 0 | AF11: 0
A12: 2 | B12: 0 | C12: =C2 -> 2 | D12: =-C12 -> -2 | E12: 0 | F12: 0 | G12: 0 | H12: 0 | I12: 0 | K12: 2 | L12: 0 | M12: 1 | N12: -0.6666666667 | O12: 0 | P12: 0 | Q12: 0 | R12: 0 | S12: 0
A13: 3 | B13: 0 | C13: 0 | D13: =D2 -> 3 | E13: =-D13 -> -3 | F13: 0 | G13: 0 | H13: 0 | I13: 0 | K13: 3 | L13: 0 | M13: 0 | N13: 1 | O13: -0.75 | P13: 0 | Q13: 0 | R13: 0 | S13: 0
A14: 4 | B14: 0 | C14: 0 | D14: 0 | E14: =E2 -> 4 | F14: =-E14 -> -4 | G14: 0 | H14: 0 | I14: 0 | K14: 4 | L14: 0 | M14: 0 | N14: 0 | O14: 1 | P14: -0.8 | Q14: 0 | R14: 0 | S14: 0
A15: 5 | B15: 0 | C15: 0 | D15: 0 | E15: 0 | F15: =F2 -> 5 | G15: =-F15 -> -5 | H15: 0 | I15: 0 | K15: 5 | L15: 0 | M15: 0 | N15: 0 | O15: 0 | P15: 1 | Q15: -0.8333333333 | R15: 0 | S15: 0 | V15: AREA | X15: =M3-X9 -> 0.5 | Y15: 0.3333333333 | Z15: 0.25 | AA15: 0.2 | AB15: 0.1666666667 | AC15: 0.1428571429 | AD15: 0.125 | AE15: 1.717857143 | AF15: =AE15/T3 -> 1
A16: 6 | B16: 0 | C16: 0 | D16: 0 | E16: 0 | F16: 0 | G16: =G2 -> 6 | H16: =-G16 -> -6 | I16: 0 | K16: 6 | L16: 0 | M16: 0 | N16: 0 | O16: 0 | P16: 0 | Q16: 1 | R16: -0.8571428571 | S16: 0 | V16: LABOR | X16: 1 | Y16: 0.6666666667 | Z16: 0.5 | AA16: 0.4 | AB16: 0.3333333333 | AC16: 0.2857142857 | AD16: 0.25 | AE16: 3.435714286 | AF16: =AE16/T4 -> 1
A17: 7 | B17: 0 | C17: 0 | D17: 0 | E17: 0 | F17: 0 | G17: 0 | H17: =H2 -> 7 | I17: =-H17 -> -7 | K17: 7 | L17: 0 | M17: 0 | N17: 0 | O17: 0 | P17: 0 | Q17: 0 | R17: 1 | S17: -0.875 | V17: NPK | X17: 1.5 | Y17: 1 | Z17: 0.75 | AA17: 0.6 | AB17: 0.5 | AC17: 0.4285714286 | AD17: 0.375 | AE17: 5.153571429 | AF17: 1
A18: 8 | B18: 0 | C18: 0 | D18: 0 | E18: 0 | F18: 0 | G18: 0 | H18: 0 | I18: =I2 -> 8 | K18: 8 | L18: 0 | M18: 0 | N18: 0 | O18: 0 | P18: 0 | Q18: 0 | R18: 0 | S18: 1
B22: 1 | C22: 2 | D22: 3 | E22: 4 | F22: 5 | G22: 6 | H22: 7 | I22: 8 | L22: 1 | M22: 2 | N22: 3 | O22: 4 | P22: 5 | Q22: 6 | R22: 7 | S22: 8
A23: 1 | B23: =1/B2 -> 1 | C23: 0 | D23: 0 | E23: 0 | F23: 0 | G23: 0 | H23: 0 | I23: 0 | K23: 1 | L23: =MINVERSE(L11:S18) -> 1 | M23: 0.5 | N23: 0.3333333333 | O23: 0.25 | P23: 0.2 | Q23: 0.1666666667 | R23: 0.1428571429 | S23: 0.125
A24: 2 | B24: 0 | C24: =1/C2 -> 0.5 | D24: 0 | E24: 0 | F24: 0 | G24: 0 | H24: 0 | I24: 0 | K24: 2 | L24: 0 | M24: 1 | N24: 0.6666666667 | O24: 0.5 | P24: 0.4 | Q24: 0.3333333333 | R24: 0.2857142857 | S24: 0.25
A25: 3 | B25: 0 | C25: 0 | D25: =1/D2 -> 0.3333333333 | E25: 0 | F25: 0 | G25: 0 | H25: 0 | I25: 0 | K25: 3 | L25: 0 | M25: 0 | N25: 1 | O25: 0.75 | P25: 0.6 | Q25: 0.5 | R25: 0.4285714286 | S25: 0.375
A26: 4 | B26: 0 | C26: 0 | D26: 0 | E26: =1/E2 -> 0.25 | F26: 0 | G26: 0 | H26: 0 | I26: 0 | K26: 4 | L26: 0 | M26: 0 | N26: 0 | O26: 1 | P26: 0.8 | Q26: 0.6666666667 | R26: 0.5714285714 | S26: 0.5
A27: 5 | B27: 0 | C27: 0 | D27: 0 | E27: 0 | F27: =1/F2 -> 0.2 | G27: 0 | H27: 0 | I27: 0 | K27: 5 | L27: 0 | M27: 0 | N27: 0 | O27: 0 | P27: 1 | Q27: 0.8333333333 | R27: 0.7142857143 | S27: 0.625
A28: 6 | B28: 0 | C28: 0 | D28: 0 | E28: 0 | F28: 0 | G28: =1/G2 -> 0.1666666667 | H28: 0 | I28: 0 | K28: 6 | L28: 0 | M28: 0 | N28: 0 | O28: 0 | P28: 0 | Q28: 1 | R28: 0.8571428571 | S28: 0.75
A29: 7 | B29: 0 | C29: 0 | D29: 0 | E29: 0 | F29: 0 | G29: 0 | H29: =1/H2 -> 0.1428571429 | I29: 0 | K29: 7 | L29: 0 | M29: 0 | N29: 0 | O29: 0 | P29: 0 | Q29: 0 | R29: 1 | S29: 0.875
A30: 8 | B30: 0 | C30: 0 | D30: 0 | E30: 0 | F30: 0 | G30: 0 | H30: 0 | I30: =1/I2 -> 0.125 | K30: 8 | L30: 0 | M30: 0 | N30: 0 | O30: 0 | P30: 0 | Q30: 0 | R30: 0 | S30: 1

Sheet F
A1: YEAR | B1: 1 | C1: 2 | D1: 3 | E1: 4 | F1: 5 | G1: 6 | H1: 7 | I1: 8 | L1: 1 | M1: 2 | N1: 3 | O1: 4 | P1: 5 | Q1: 6 | R1: 7 | S1: 8 | W1: 1 | X1: 2 | Y1: 3 | Z1: 4 | AA1: 5 | AB1: 6 | AC1: 7 | AD1: 8
A2: OUTPUT | B2: 10 | C2: 10 | D2: 10 | E2: 10 | F2: 10 | G2: 10 | H2: 10 | I2: 10
A3: INPUT1 | B3: 1 | C3: 2 | D3: 3 | E3: 4 | F3: 5 | G3: 6 | H3: 7 | I3: 8 | K3: INPUT1 | L3: =MMULT(B3:I5,B23:I30) -> 0.1 | M3: 0.2 | N3: 0.3 | O3: 0.4 | P3: 0.5 | Q3: 0.6 | R3: 0.7 | S3: 0.8 | T3: =SUM(M3:S3) -> 3.5 | V3: AREA | W3: =MMULT(L3:S5,L23:S30) -> 0.1 | X3: 0.3 | Y3: 0.6 | Z3: 1 | AA3: 1.5 | AB3: 2.1 | AC3: 2.8 | AD3: 3.6
A4: INPUT2 | B4: =B3^2 -> 1 | C4: =C3^2 -> 4 | D4: 9 | E4: 16 | F4: 25 | G4: 36 | H4: 49 | I4: 64 | K4: INPUT2 | L4: 0.1 | M4: 0.4 | N4: 0.9 | O4: 1.6 | P4: 2.5 | Q4: 3.6 | R4: 4.9 | S4: 6.4 | T4: =SUM(M4:S4) -> 20.3 | V4: LABOR | W4: 0.1 | X4: 0.5 | Y4: 1.4 | Z4: 3 | AA4: 5.5 | AB4: 9.1 | AC4: 14 | AD4: 20.4
A5: INPUT3 | B5: =B3^3 -> 1 | C5: =C3^3 -> 8 | D5: 27 | E5: 64 | F5: 125 | G5: 216 | H5: 343 | I5: 512 | K5: INPUT3 | L5: 0.1 | M5: 0.8 | N5: 2.7 | O5: 6.4 | P5: 12.5 | Q5: 21.6 | R5: 34.3 | S5: 51.2 | T5: 129.5 | V5: NPK | W5: 0.1 | X5: 0.9 | Y5: 3.6 | Z5: 10 | AA5: 22.5 | AB5: 44.1 | AC5: 78.4 | AD5: 129.6
V9: AREA | X9: =X3-W3 -> 0.2 | Y9: =Y3-X3 -> 0.3 | Z9: 0.4 | AA9: 0.5 | AB9: 0.6 | AC9: 0.7 | AD9: 0.8 | AE9: =SUM(X9:AD9) -> 3.5 | AF9: =AE9/T3 -> 1
B10: 1 | C10: 2 | D10: 3 | E10: 4 | F10: 5 | G10: 6 | H10: 7 | I10: 8 | L10: 1 | M10: 2 | N10: 3 | O10: 4 | P10: 5 | Q10: 6 | R10: 7 | S10: 8 | V10: LABOR | X10: =X4-W4 -> 0.4 | Y10: 0.9 | Z10: 1.6 | AA10: 2.5 | AB10: 3.6 | AC10: 4.9 | AD10: 6.4 | AE10: =SUM(X10:AD10) -> 20.3 | AF10: =AE10/T4 -> 1
A11: 1 | B11: =B2 -> 10 | C11: =-B11 -> -10 | D11: 0 | E11: 0 | F11: 0 | G11: 0 | H11: 0 | I11: 0 | K11: 1 | L11: =MMULT(B11:I18,B23:I30) -> 1 | M11: -1 | N11: 0 | O11: 0 | P11: 0 | Q11: 0 | R11: 0 | S11: 0 | V11: NPK | X11: =X5-W5 -> 0.8 | Y11: 2.7 | Z11: 6.4 | AA11: 12.5 | AB11: 21.6 | AC11: 34.3 | AD11: 51.2 | AE11: 129.5 | AF11: 1
A12: 2 | B12: 0 | C12: =C2 -> 10 | D12: =-C12 -> -10 | E12: 0 | F12: 0 | G12: 0 | H12: 0 | I12: 0 | K12: 2 | L12: 0 | M12: 1 | N12: -1 | O12: 0 | P12: 0 | Q12: 0 | R12: 0 | S12: 0
A13: 3 | B13: 0 | C13: 0 | D13: =D2 -> 10 | E13: =-D13 -> -10 | F13: 0 | G13: 0 | H13: 0 | I13: 0 | K13: 3 | L13: 0 | M13: 0 | N13: 1 | O13: -1 | P13: 0 | Q13: 0 | R13: 0 | S13: 0
A14: 4 | B14: 0 | C14: 0 | D14: 0 | E14: =E2 -> 10 | F14: =-E14 -> -10 | G14: 0 | H14: 0 | I14: 0 | K14: 4 | L14: 0 | M14: 0 | N14: 0 | O14: 1 | P14: -1 | Q14: 0 | R14: 0 | S14: 0
A15: 5 | B15: 0 | C15: 0 | D15: 0 | E15: 0 | F15: =F2 -> 10 | G15: =-F15 -> -10 | H15: 0 | I15: 0 | K15: 5 | L15: 0 | M15: 0 | N15: 0 | O15: 0 | P15: 1 | Q15: -1 | R15: 0 | S15: 0 | V15: AREA | X15: =M3-X9 -> 0 | Y15: 0 | Z15: 0 | AA15: 0 | AB15: 0 | AC15: 0 | AD15: 0 | AE15: 0 | AF15: =AE15/T3 -> 0
A16: 6 | B16: 0 | C16: 0 | D16: 0 | E16: 0 | F16: 0 | G16: =G2 -> 10 | H16: =-G16 -> -10 | I16: 0 | K16: 6 | L16: 0 | M16: 0 | N16: 0 | O16: 0 | P16: 0 | Q16: 1 | R16: -1 | S16: 0 | V16: LABOR | X16: 0 | Y16: 0 | Z16: 0 | AA16: 0 | AB16: 0 | AC16: 0 | AD16: 0 | AE16: 0 | AF16: =AE16/T4 -> 0
A17: 7 | B17: 0 | C17: 0 | D17: 0 | E17: 0 | F17: 0 | G17: 0 | H17: =H2 -> 10 | I17: =-H17 -> -10 | K17: 7 | L17: 0 | M17: 0 | N17: 0 | O17: 0 | P17: 0 | Q17: 0 | R17: 1 | S17: -1 | V17: NPK | X17: 0 | Y17: 0 | Z17: 0 | AA17: 0 | AB17: 0 | AC17: 0 | AD17: 0 | AE17: 0 | AF17: 0
A18: 8 | B18: 0 | C18: 0 | D18: 0 | E18: 0 | F18: 0 | G18: 0 | H18: 0 | I18: =I2 -> 10 | K18: 8 | L18: 0 | M18: 0 | N18: 0 | O18: 0 | P18: 0 | Q18: 0 | R18: 0 | S18: 1
B22: 1 | C22: 2 | D22: 3 | E22: 4 | F22: 5 | G22: 6 | H22: 7 | I22: 8 | L22: 1 | M22: 2 | N22: 3 | O22: 4 | P22: 5 | Q22: 6 | R22: 7 | S22: 8
A23: 1 | B23: =1/B2 -> 0.1 | C23: 0 | D23: 0 | E23: 0 | F23: 0 | G23: 0 | H23: 0 | I23: 0 | K23: 1 | L23: =MINVERSE(L11:S18) -> 1 | M23: 1 | N23: 1 | O23: 1 | P23: 1 | Q23: 1 | R23: 1 | S23: 1
A24: 2 | B24: 0 | C24: =1/C2 -> 0.1 | D24: 0 | E24: 0 | F24: 0 | G24: 0 | H24: 0 | I24: 0 | K24: 2 | L24: 0 | M24: 1 | N24: 1 | O24: 1 | P24: 1 | Q24: 1 | R24: 1 | S24: 1
A25: 3 | B25: 0 | C25: 0 | D25: =1/D2 -> 0.1 | E25: 0 | F25: 0 | G25: 0 | H25: 0 | I25: 0 | K25: 3 | L25: 0 | M25: 0 | N25: 1 | O25: 1 | P25: 1 | Q25: 1 | R25: 1 | S25: 1
A26: 4 | B26: 0 | C26: 0 | D26: 0 | E26: =1/E2 -> 0.1 | F26: 0 | G26: 0 | H26: 0 | I26: 0 | K26: 4 | L26: 0 | M26: 0 | N26: 0 | O26: 1 | P26: 1 | Q26: 1 | R26: 1 | S26: 1
A27: 5 | B27: 0 | C27: 0 | D27: 0 | E27: 0 | F27: =1/F2 -> 0.1 | G27: 0 | H27: 0 | I27: 0 | K27: 5 | L27: 0 | M27: 0 | N27: 0 | O27: 0 | P27: 1 | Q27: 1 | R27: 1 | S27: 1
A28: 6 | B28: 0 | C28: 0 | D28: 0 | E28: 0 | F28: 0 | G28: =1/G2 -> 0.1 | H28: 0 | I28: 0 | K28: 6 | L28: 0 | M28: 0 | N28: 0 | O28: 0 | P28: 0 | Q28: 1 | R28: 1 | S28: 1
A29: 7 | B29: 0 | C29: 0 | D29: 0 | E29: 0 | F29: 0 | G29: 0 | H29: =1/H2 -> 0.1 | I29: 0 | K29: 7 | L29: 0 | M29: 0 | N29: 0 | O29: 0 | P29: 0 | Q29: 0 | R29: 1 | S29: 1
A30: 8 | B30: 0 | C30: 0 | D30: 0 | E30: 0 | F30: 0 | G30: 0 | H30: 0 | I30: =1/I2 -> 0.1 | K30: 8 | L30: 0 | M30: 0 | N30: 0 | O30: 0 | P30: 0 | Q30: 0 | R30: 0 | S30: 1
